Cogmind - Beta 14 @@@ ROGUE MODE // 2024.09.27 @ 08:24:48 Player: Kinga Result: Self-destructed Performance ------------- Evolutions (0) 0 Regions Visited (3) 600 Robots Destroyed (17) 85 Value Destroyed (454) 454 Prototype IDs (1) 20 Alien Tech Used (0) 0 Bonus (202) 202 TOTAL SCORE: 1361 Bonus ------- Follower Combat Kills 202 Cogmind --------- Core Integrity 98/250 Matter 300/300 Energy 170/170 System Corruption 0% Temperature Cool (0) Movement Treading (480) Ox4 Location -7/Recycling Parts ------- > --- POWER (1) -------- Makeshift Power Source > --- PROPULSION (2) --- Light Treads > --- UTILITY (2) ------ Huge Storage Unit Hardened Light Armor Plating > --- WEAPON (2) ------- Subdweller Beam Cannon Battle Cannon > --- INVENTORY (25) --- Wheel Compact Wheel Signal Interpreter Improved Targeting Computer Hardened Light Armor Plating Scrap Shield V3-11A's Pendant Subdweller Laser Overtuned Pulse Rifle Subdweller Shrapnel Launcher Peak State ------------ > --- POWER ------------ Makeshift Power Source > --- PROPULSION ------- Light Treads Light Treads > --- UTILITY ---------- Huge Storage Unit V3-11A's Pendant > --- WEAPON ----------- Subdweller Beam Cannon Battle Cannon > --- INVENTORY -------- Wheel Compact Wheel Signal Interpreter Improved Targeting Computer Hardened Light Armor Plating Hardened Light Armor Plating Autogun Autogun Subdweller Shrapnel Launcher SUBCON Basin [Rating: 33] Favorites ----------- Power Makeshift Power Source Engine Makeshift Power Source Propulsion Light Treads Treads Light Treads Utility Huge Storage Unit Device V3-11A's Pendant Storage Huge Storage Unit Protection Hardened Light Armor Plating Weapon Subdweller Beam Cannon Energy Gun Medium Laser Energy Cannon Subdweller Beam Cannon Ballistic Cannon Battle Cannon Build | -11 -10 -10 -7 ------- Run | Yrd Mat Sub Rec Slots Evolved . | . . . . Power . | . . . . Propulsion . | . . . . Utility . | . . . . Weapon . | . . . . Parts Attached 22 | 6 4 11 1 Power 3 | 1 . 2 . Engine 3 | 1 . 2 . Core . | . . . . Reactor . | . . . . Propulsion 2 | 2 . . . Treads 2 | 2 . . . Leg . | . . . . Wheel . | . . . . Hover . | . . . . Flight . | . . . . Utility 7 | 1 4 1 1 Device 1 | . . 1 . Storage 3 | 1 2 . . Processor . | . . . . Hackware . | . . . . Protection 3 | . 2 . 1 Artifact . | . . . . Weapon 10 | 2 . 8 . Energy Gun 2 | 2 . . . Energy Cannon 4 | . . 4 . Ballistic Gun . | . . . . Ballistic Cannon 4 | . . 4 . Launcher . | . . . . Special Weapon . | . . . . Impact Weapon . | . . . . Slashing Weapon . | . . . . Piercing Weapon . | . . . . Special Melee Weapon . | . . . . Unidentified Prototypes 1 | . . 1 . Parts Lost 3 | . . 2 1 Power 1 | . . 1 . Propulsion 1 | . . . 1 Utility . | . . . . Weapon 1 | . . 1 . Highest Loss Streak 1 | . . 1 1 To Critical Strikes . | . . . . Average Slot Usage (%) 98 | . 99 99 92 Engine 14 | . 14 14 14 Treads 26 | . 28 28 21 Device 7 | . . 8 1 Storage 14 | . 14 14 14 Protection 6 | . 13 5 12 Energy Gun 3 | . 28 2 . Energy Cannon 13 | . . 14 14 Ballistic Cannon 10 | . . 11 14 Peak Build Rating 33 | 6 10 33 33 Average Rating 21 | 4 8 22 23 On Entrance 12 | . 6 10 33 Naked Turns . | . . . . Heaviest Build 104 | 11 91 104 100 Greatest Support 40 | 40 40 40 40 Greatest Overweight (x) 4 | . 2 2 4 Average Overweight (x) 1 | . 1 2 2 Largest Inventory Capacity 25 | 8 25 25 25 Average Capacity 24 | 6 21 25 25 Most Carried 25 | 4 20 25 25 Average Carried 22 | 1 13 24 18 Final Capacity 25 | 8 25 25 25 Final Carried 25 | 4 19 25 11 Class Distribution -------------------- 100% | Mutant Dominant Class ---------------- Mutant | -10/Materials Mutant | -10/Subcaves Mutant | -7/Recycling Resources | -11 -10 -10 -7 ----------- Run | Yrd Mat Sub Rec Matter Collected 598 | 215 65 298 20 Remotely . | . . . . Salvage Created 661 | . 220 310 131 Parts 35 | . 9 21 5 Haulers Intercepted 1 | . 1 . . Recyclers Shooed 1 | . 1 . . Parts Field Recycled . | . . . . Retrieved Matter . | . . . . Parts Self-Destructed 24 | . . 24 . Prevented . | . . . . Kills | -11 -10 -10 -7 ------- Run | Yrd Mat Sub Rec Combat Hostiles Destroyed 14 | . 3 10 1 Guns 3 | . 3 . . Cannons 10 | . . 9 1 Classes Destroyed 8 | . 3 3 2 Hauler 1 | . 1 . . Recycler 1 | . . . 1 Watcher 1 | . 1 . . Swarmer 5 | . . 5 . Grunt 4 | . 3 1 . Sentry 1 | . . 1 . Subdweller 3 | . . 3 . Scrapper 1 | . . . 1 Best Kill Streak 4 | . 4 2 1 Combat Bots Only 2 | . 1 2 1 Max Kills in Single Turn 2 | . 2 1 1 Gunslinging . | . . . . Exploded . | . . . . Melee . | . . . . Uniques/NPCs Destroyed . | . . . . Combat | -11 -10 -10 -7 -------- Run | Yrd Mat Sub Rec Hostile Shots Fired 103 | . 16 86 1 Missed 28 | . 4 24 . Damage Taken 916 | . 130 753 33 Core 152 | . 47 100 5 Absorbed by Shields . | . . . . Core Remaining (%) 100 | 100 . . . Volleys Fired 69 | . 17 50 2 Largest 2 | . 2 2 2 Hottest 160 | . 90 160 119 Shots Fired 137 | . 34 99 4 Gun 34 | . 34 . . Cannon 103 | . . 99 4 Launcher . | . . . . Special . | . . . . Kinetic 37 | . . 35 2 Thermal 100 | . 34 64 2 Explosive . | . . . . Electromagnetic . | . . . . Robot Hit Streak 12 | . 7 12 1 Robot Miss Streak 4 | . 4 4 1 Penetration Max . | . . . . Secondary Targets . | . . . . Shots Hit Robots 59 | . 20 37 2 Core Hits 22 | . 9 11 2 Critical Kills 1 | . . 1 . Critical Parts Destroyed . | . . . . Critical Strikes 4 | . 1 3 . Burn 1 | . 1 . . Meltdown 1 | . . 1 . Blast 2 | . . 2 . Melee Attacks . | . . . . Impact . | . . . . Slashing . | . . . . Piercing . | . . . . Sneak Attacks . | . . . . Combat Hostiles . | . . . . Follow-up Attacks . | . . . . Damage Inflicted 1284 | . 260 964 60 Guns 260 | . 260 . . Cannons 1019 | . . 964 55 Explosions . | . . . . Melee . | . . . . Ramming 5 | . . . 5 Kinetic 310 | . . 283 27 Thermal 969 | . 260 681 28 Explosive . | . . . . Electromagnetic . | . . . . Impact . | . . . . Slashing . | . . . . Piercing . | . . . . Highest Corruption . | . . . . Average Corruption . | . . . . Corruption Purged . | . . . . Corruption Blocked . | . . . . Overload Shots . | . . . . Overflow Damage 10 | . . 10 . Projectiles 10 | . . 10 . Explosions . | . . . . Melee . | . . . . Knockbacks 4 | . . 3 1 Impact . | . . . . Kinetic 4 | . . 3 1 Secondary . | . . . . Self-Inflicted Damage . | . . . . Shots . | . . . . Rammed 1 | . 1 . . Targets Rammed 2 | . 1 . 1 Kicked . | . . . . Crushed 1 | . . . 1 Highest Temperature 263 | . 263 229 176 Average Temperature 80 | . 130 51 88 Received Heat Transfer 141 | . 72 57 12 Siege Activations . | . . . . Robots Corrupted . | . . . . Combat Hostiles . | . . . . Parts Fried . | . . . . Impact Corruptions . | . . . . Robots Melted 1 | . . 1 . Combat Hostiles 1 | . . 1 . Parts Melted 3 | . 1 1 1 Heat Transferred 1706 | . 756 925 25 Parts Sabotaged . | . . . . Parts Stolen . | . . . . Parts Stripped . | . . . . Power Chain Reactions . | . . . . Alert | -11 -10 -10 -7 ------- Run | Yrd Mat Sub Rec Peak Influence 104 | . 104 . 74 Initial 52 | . . . 52 Average 31 | . 39 . 29 Maximum Alert Level . | . . . . Low Security (%) 100 | 100 100 . 100 Level 1 . | . . . . Level 2 . | . . . . Level 3 . | . . . . Level 4 . | . . . . Level 5 . | . . . . High Security . | . . . . Max Security . | . . . . Squads Dispatched 1 | . 1 . . Investigation . | . . . . Extermination . | . . . . Reinforcement 1 | . 1 . . Assault . | . . . . Garrison . | . . . . Intercept . | . . . . Searches Triggered . | . . . . Construction Impeded . | . . . . Haulers Reinforced . | . . . . Active Scanning Responses . | . . . . Cargo Convoy Interrupts . | . . . . Stealth | -11 -10 -10 -7 --------- Run | Yrd Mat Sub Rec Distress Signals 1 | . 1 . . Communications Jammed . | . . . . Distress Signals . | . . . . Times Spotted 23 | . 5 16 2 Peak Tracking Total 4 | . 3 4 1 Tactical Retreats 4 | . . 4 . Traps | -11 -10 -10 -7 ------- Run | Yrd Mat Sub Rec Traps Triggered 2 | . . 2 . Indirectly . | . . . . Trap Hack Attempts . | . . . . Triggered . | . . . . Disarmed . | . . . . Reprogrammed . | . . . . Reused . | . . . . Traps Extracted . | . . . . Installed . | . . . . Triggered 1 | . . 1 . Machines | -11 -10 -10 -7 ---------- Run | Yrd Mat Sub Rec Machines Disabled 8 | . . 3 5 Max in Single Turn . | . . . . Machines Repaired . | . . . . Machines Dismantled . | . . . . Machines Sabotaged . | . . . . Overloaded Fab Kills . | . . . . Hacking | -11 -10 -10 -7 --------- Run | Yrd Mat Sub Rec Machines Accessed 5 | . . 3 2 Terminals 2 | . . . 2 Fabricators . | . . . . Repair Stations . | . . . . Recycling Units . | . . . . Scanalyzers . | . . . . Garrison Access . | . . . . Total Hacks 11 | . . 6 5 Successful 7 | . . 6 1 Failed 4 | . . . 4 Catastrophic 1 | . . . 1 Database Lockouts . | . . . . Manual 1 | . . . 1 Terminals 5 | . . . 5 Fabricators . | . . . . Repair Stations . | . . . . Recycling Units . | . . . . Scanalyzers . | . . . . Garrison Access . | . . . . Terminal Hacks 7 | . . 6 1 Record 4 | . . 4 . Open Door 1 | . . 1 . Hauler Manifests 1 | . . . 1 Release Object 1 | . . 1 . Fabricator Hacks . | . . . . Repair Station Hacks . | . . . . Recycling Unit Hacks . | . . . . Scanalyzer . | . . . . Garrison Access Hacks . | . . . . Unauthorized Hacks . | . . . . Terminals . | . . . . Fabricators . | . . . . Repair Stations . | . . . . Recycling Units . | . . . . Scanalyzers . | . . . . Garrison Access . | . . . . Data Cores Recovered . | . . . . Used . | . . . . Hacking Detections 2 | . . . 2 Full Trace Events . | . . . . Feedback Events . | . . . . Feedback Blocked . | . . . . Robot Schematics Acquired . | . . . . Robots Built . | . . . . Authchips . | . . . . Time . | . . . . Total Robot Build Rating . | . . . . Part Schematics Acquired . | . . . . Parts Built . | . . . . Authchips . | . . . . Time . | . . . . Total Part Build Rating . | . . . . Parts Repaired . | . . . . Time . | . . . . Parts Recycled . | . . . . Recycled Matter . | . . . . Retrieved Matter . | . . . . Retrieved Components . | . . . . Parts Scanalyzed . | . . . . Part Schematics Acquired . | . . . . Parts Damaged . | . . . . Bothacking | -11 -10 -10 -7 ------------ Run | Yrd Mat Sub Rec Used RIF Installer . | . . . . Robots Hacked . | . . . . Non-combat . | . . . . Combat . | . . . . Robot Hacks Applied . | . . . . Relay Couplers Released . | . . . . Fabnet Peak Effective % . | . . . . Robots Rewired . | . . . . Allies Hacked . | . . . . Hacks Repelled . | . . . . Allies | -11 -10 -10 -7 -------- Run | Yrd Mat Sub Rec Total Allies 5 | . . 5 . Largest Group 3 | . . 3 3 Highest-Rated Group 57 | . . 57 57 Highest-Rated Ally 19 | . . 19 19 Total Orders . | . . . . Ally Attacks 18 | . . 11 7 Total Damage 948 | . . 589 359 Kills 11 | . . 5 6 Allies Corrupted . | . . . . Allies Melted . | . . . . Intel | -11 -10 -10 -7 ------- Run | Yrd Mat Sub Rec Robot Analysis Total . | . . . . Derelict Logs Recovered 2 | . . 2 . Drone Launches . | . . . . Drone Recoveries . | . . . . Exploration | -11 -10 -10 -7 ------------- Run | Yrd Mat Sub Rec Turns Passed 8247 | 89 494 6451 1213 Spaces Moved 2427 | 50 136 1956 285 Core 3 | 3 . . . Treads 2424 | 47 136 1956 285 Legs . | . . . . Wheels . | . . . . Hover . | . . . . Flight . | . . . . Fastest Speed 50 | 50 160 320 320 Average Speed 318 | 153 247 320 372 Slowest Speed 480 | 160 320 320 480 Overloaded Moves . | . . . . Propulsion Burnouts . | . . . . Robots Hopped . | . . . . Cave-ins Triggered . | . . . . Exploration Rate (%) 49 | 4 34 96 65 Regions Visited 3 Branch Regions 2 Pre-discovered Areas 2 | . . 2 . Known Exits Taken . | . . . . Unknown Exits Taken 3 | 1 1 1 . Scrap Searched 9 | . . 9 . Spaces Dug 1 | . . 1 . Terrain Destroyed 12 | . . 12 . Melee . | . . . . Projectile 12 | . . 12 . AOE . | . . . . Terrain Rammed . | . . . . Walls Destroyed . | . . . . Machines Disabled . | . . . . Actions | -11 -10 -10 -7 --------- Run | Yrd Mat Sub Rec Total 2802 | 59 260 2056 427 Wait 218 | . 81 2 135 Move 2424 | 49 135 1955 285 Hop . | . . . . Pick Up 33 | 4 17 11 1 Fast Attach 10 | 6 2 2 . Attach 4 | . . 4 . Detach 1 | . . 1 . Swap 8 | . 2 5 1 Drop 28 | . 5 22 1 Fire 69 | . 17 50 2 Melee . | . . . . Ram . | . . . . Kick . | . . . . Crush 2 | . 1 . 1 Escape Stasis . | . . . . Rewire 4 | . . 4 . Trap . | . . . . Miscellaneous 1 | . . . 1 Route ------- -11/Scrapyard -10/Materials -10/Subcaves (discovered 3 exits: [*Mat x2] / *Rec) -7/Recycling History --------- Turn | Location | Event 6 | -11/Scrapyard | Discovered new exit (range 15) 90 | -11/Scrapyard | Entered Materials 304 | -10/Materials | Build established: Mutant 560 | -10/Materials | Discovered new exit (range 4) 584 | -10/Materials | Entered Subcaves 2755 | -10/Subcaves | Disturbed a concealed Subdweller 3028 | -10/Subcaves | Visited triangular shrine 3048 | -10/Subcaves | Found Prototype Device 3048 | -10/Subcaves | Identified V3-11A's Pendant 3053 | -10/Subcaves | Befriended Subdweller 3353 | -10/Subcaves | Core integrity fell below 50% 3379 | -10/Subcaves | Approached by friendly Subdweller 3403 | -10/Subcaves | Learned Materials terminal intel 3647 | -10/Subcaves | Discovered new exit (range 12) 3783 | -10/Subcaves | Visited Clippyterm 3793 | -10/Subcaves | Learned location of Section 7 (-2) 3841 | -10/Subcaves | Learned Materials stockpile data 3908 | -10/Subcaves | Discovered new exit (range 11) 3967 | -10/Subcaves | Found SUBCON Basin 4658 | -10/Subcaves | Befriended Subdweller 4658 | -10/Subcaves | Befriended Subdweller 5330 | -10/Subcaves | Learned location of Zion (-7) 5330 | -10/Subcaves | Met a Zionite searching for "candidates" 5765 | -10/Subcaves | Shifting Twisted Machinery released Battle Cannon 5788 | -10/Subcaves | Shifting Twisted Machinery released Scrap Shield 6073 | -10/Subcaves | Discovered new exit (range 14) 6483 | -10/Subcaves | Befriended Subdweller 7035 | -10/Subcaves | Entered Recycling 7035 | -7/Recycling | Accompanied by 3 allies 7594 | -7/Recycling | Scanned before Scraplab entrance 7639 | -7/Recycling | Entered Scraplab 7649 | -7/Recycling | Released subatomizers from SUBCON Basin 7649 | -7/Recycling | Angered Scraplab inhabitants 7703 | -7/Recycling | Lost 3 allies 8248 | -7/Recycling | Self-destructed Last Messages --------------- 07704_ Acquired Ovr. Pulse Rifle. 07726_ Subatomizers dissect the Sub. Monowheel, destroying it. 07727_ Subatomizers dissect the Ovr. Titanium Leg, destroying it. 07753_ Subatomizers dissect the Sub. Monowheel, destroying it. 07754_ Subatomizers dissect the Mak. Microdissipator Network, destroying it. 07765_ Subatomizers consume the Door. 07767_ Subatomizers dissect the Sub. Beam Cannon, destroying it. 07783_ Subatomizers consume a piece of Machine. 07794_ Subatomizers dissect the Machine Analyzer, destroying it. 07817_ Subatomizers dissect the Sub. Power Source, destroying it. 07858_ Subatomizers consume a piece of Machine. 08113_ Crushed R-06 Scavenger. 08113_ R-06 Scavenger destroyed. 08137_ U-05 Engineer builds a Door. 08144_ U-05 Engineer lays Concrete. 08146_ Subatomizers dissect the Lgt. Ion Engine, destroying it. 08146_ U-05 Engineer lays Concrete. 08157_ Subatomizers dissect the Imp. Light Armor Plating, destroying it. 08206_ Subatomizers consume the Door. Map ----- +----------------------------------------------------+ | | | | | | | | | | | | | | | | | | | | | | | | | | | | | | | | | | | | | | | | | ???????????????????############????????????????? | | ???????????????????#" #" #????????????????? | | ???????????????????# % ## #????????????????? | | ?????????????#######% %&#????????????????? | | ????????????## % & [%% #????????????????? | | ????????????# #####% @ &= &&#????????????????? | | ????????????## #???# % & #????????????????? | | ?????????????# #???# & & #????????????????? | | ?????????????# #???#""" " #????????????????? | | ??????????#### ################????????????????? | | ??????????# #????????????????????????????? | | ??????????# #????????????????????????????? | | ??????????# #????????????????????????????? | | ????????### #????????????????????????????? | | ????????# """"+####????????????????????????????? | | ????????# """" #???????????????????????????????? | | ????#####""%"" #???????????????????????????????? | | ????# #???????????????????????????????? | | ????# """#???????????????????????????????? | | ????# "###???????????????????????????????? | | ????# ##?????????????????????????????????? | | ????# ##### #??????????????????????????????????? | | ????# #???# #??????????????????????????????????? | | ????# #???# #??????????????????????????????????? | | ??###/#####+####???????????????????????????????? | | ??# #???????????????????????????????? | | ??# #???????????????????????????????? | | ??# #???????????????????????????????? | | ??# #???????????????????????????????? | | ??# #???????????????????????????????? | +----------------------------------------------------+ Best States ------------- Heat Dissipation 25 Energy Generation 15 Energy Capacity 200 Matter Stores 300 Matter Capacity 300 Sight Range 16 Terrain Scan Density 10 Armor Coverage 150 Evasion (%) 40 Recoil Reduction 2 Item Schematics ----------------- None Robot Schematics ------------------ None Fabricated ------------ Nothing Alien Tech Used ----------------- None Achievements -------------- None Challenges ------------ None Game ------ Seed CoreFortressScythe Manual? 0 Play Time 00:23:22 Cumulative 98.9 hours Start 2024.09.27 @ 08:04:11 End 2024.09.27 @ 08:24:48 Sessions 1 Manual Loads 0 Difficulty Rogue Special Mode None Game No. 116 Rogue 112 Adventurer 0 Explorer 4 Win Type - Total 6 Types 4/0/0/2/0/0/0/0/0 Lore% 43 Gallery% 63 Achievement% 57 Wizard Run 0 Options --------- Layout 0 ASCII 0 Keyboard 0 Movement Numpad Keybinds 0 Fullscreen 2 Font 18/SmallcapsGlow Map View 76x50 Zoom Use 0% Tactical HUD 1 Map Filters NONE Filters NONE Steam 1 RUN: 65a5fcb3-3111-4ac5-b58a-e8624f56e826